fUST/lending_fUST_20260605
["ID","MTS","AMOUNT","RATE_DAILY","PERIOD"]
[424130451,1780606250000,-778.760392,0.00018092,2]
[424130443,1780606250000,-758.34,0.00018092,2]
[424130447,1780606250000,-500.0,0.00018092,2]
[424130441,1780606250000,-500.0,0.00018092,2]
[424130450,1780606250000,-778.760388,0.00018092,2]
[424130430,1780606250000,-500.0,0.00018091,2]
[424130439,1780606250000,-2548.79,0.00018091,2]
[424130448,1780606250000,-778.760388,0.00018092,2]
[424130440,1780606250000,-529.26,0.00018091,2]
[424130432,1780606250000,-577.59,0.00018091,2]
[424130431,1780606250000,-500.0,0.00018091,2]
[424130444,1780606250000,-500.0,0.00018092,2]
[424130449,1780606250000,-778.760388,0.00018092,2]
[424130445,1780606250000,-579.72,0.00018092,2]
[424130465,1780606250000,-755.06611648,0.00018139,2]
[424130453,1780606250000,-614.602364,0.00018092,2]
[424130463,1780606250000,-1018.8006981,0.00018139,2]
[424130464,1780606250000,-823.44940514,0.00018139,2]
[424130452,1780606250000,-614.602364,0.00018092,2]
[424130454,1780606250000,-614.602364,0.00018092,2]
[424130456,1780606250000,-500.0,0.00018092,2]
[424130455,1780606250000,-614.602365,0.00018092,2]
[424130457,1780606250000,-3143.61,0.00018092,2]
[424130461,1780606250000,-1051.46,0.00018092,2]
[424130462,1780606250000,-151.0,0.000181,2]
[424130460,1780606250000,-1164.47,0.00018092,2]
[424130458,1780606250000,-600.85,0.00018092,2]
[424130459,1780606250000,-181.34,0.00018092,2]
[424130429,1780606250000,-996.63,0.0001809,2]
[424130446,1780606250000,-832.53,0.00018092,2]
[424130426,1780606250000,-1456.66,0.0001809,2]
[424130402,1780606250000,-500.0,0.00018052,2]
[424130437,1780606250000,-284.66,0.00018091,2]
[424130410,1780606250000,-472.091,0.0001807,2]
[424130412,1780606250000,-245.94128,0.0001807,2]
[424130411,1780606250000,-245.94128,0.0001807,2]
[424130413,1780606250000,-245.94128,0.0001807,2]
[424130404,1780606250000,-643.26,0.00018052,2]
[424130403,1780606250000,-500.0,0.00018052,2]
[424130405,1780606250000,-500.0,0.00018052,2]
[424130409,1780606250000,-188.341,0.0001807,2]
[424130407,1780606250000,-1836.0,0.0001807,2]
[424130406,1780606250000,-500.0,0.00018052,2]
[424130408,1780606250000,-3630.0,0.0001807,2]
[424130414,1780606250000,-245.94128,0.0001807,2]
[424130416,1780606250000,-1659.57,0.00018088,2]
[424130419,1780606250000,-500.0,0.00018088,2]
[424130418,1780606250000,-749.98,0.00018088,2]
[424130417,1780606250000,-511.86,0.00018088,2]
[424130415,1780606250000,-866.85,0.00018088,2]
[424130423,1780606250000,-517.3,0.0001809,2]
[424130420,1780606250000,-500.0,0.00018089,2]
[424130425,1780606250000,-2068.89,0.0001809,2]
[424130424,1780606250000,-1194.0,0.0001809,2]
[424130421,1780606250000,-615.98,0.0001809,2]
[424130422,1780606250000,-2275.6,0.0001809,2]
[424130427,1780606250000,-1621.65,0.0001809,2]
[424130435,1780606250000,-500.0,0.00018091,2]
[424130433,1780606250000,-957.06,0.00018091,2]
[424130436,1780606250000,-625.0,0.00018091,2]
[424130434,1780606250000,-500.0,0.00018091,2]
[424130438,1780606250000,-17646.95,0.00018091,2]
[424130428,1780606250000,-500.0,0.0001809,2]
[424130467,1780606250000,-885.63211297,0.00018167,2]
[424130529,1780606250000,-864.0,0.00018608,2]
[424130469,1780606250000,-761.63192058,0.00018194,2]
[424130499,1780606250000,-500.0,0.00018365,2]
[424130500,1780606250000,-500.0,0.00018365,2]
[424130502,1780606250000,-17646.95,0.00018365,2]
[424130506,1780606250000,-298.01,0.00018366,2]
[424130515,1780606250000,-1164.47,0.00018366,2]
[424130516,1780606250000,-1051.46,0.00018366,2]
[424130519,1780606250000,-175.30609,0.00018493,2]
[424130517,1780606250000,-212.241471,0.00018373,2]
[424130518,1780606250000,-180.61873229,0.000184,2]
[424130509,1780606250000,-579.72,0.00018366,2]
[424130511,1780606250000,-500.0,0.00018366,2]
[424130513,1780606250000,-3143.61,0.00018366,2]
[424130512,1780606250000,-500.0,0.00018366,2]
[424130508,1780606250000,-500.0,0.00018366,2]
[424130510,1780606250000,-832.53,0.00018366,2]
[424130514,1780606250000,-600.85,0.00018366,2]
[424130507,1780606250000,-758.34,0.00018366,2]
[424130522,1780606250000,-500.0,0.000185,2]
[424130523,1780606250000,-500.0,0.000185,2]
[424130532,1780606250000,-1659.57,0.00018636,2]
[424130530,1780606250000,-1163.65,0.0001863,2]
[424130531,1780606250000,-866.85,0.00018636,2]
[424130526,1780606250000,-500.0,0.000186,2]
[424130520,1780606250000,-500.0,0.000185,2]
[424130524,1780606250000,-500.0,0.00018526,2]
[424130521,1780606250000,-180.61873229,0.000185,2]
[424130525,1780606250000,-162.380719,0.00018526,2]
[424130528,1780606250000,-151.0,0.000186,2]
[424130468,1780606250000,-1155.35885278,0.00018194,2]
[424130501,1780606250000,-625.0,0.00018365,2]
[424130494,1780606250000,-996.63,0.00018364,2]
[424130527,1780606250000,-500.0,0.000186,2]
[424130497,1780606250000,-577.59,0.00018365,2]
[424130505,1780606250000,-500.0,0.00018366,2]
[424130475,1780606250000,-500.0,0.00018226,2]
[424130477,1780606250000,-500.0,0.00018326,2]
[424130466,1780606250000,-792.46373695,0.00018139,2]
[424130472,1780606250000,-500.0,0.00018226,2]
[424130473,1780606250000,-500.0,0.00018226,2]
[424130470,1780606250000,-1015.63639742,0.00018199,2]
[424130471,1780606250000,-180.61873229,0.000182,2]
[424130474,1780606250000,-500.0,0.00018226,2]
[424130479,1780606250000,-500.0,0.00018326,2]
[424130489,1780606250000,-1194.0,0.00018364,2]
[424130483,1780606250000,-749.98,0.00018362,2]
[424130480,1780606250000,-866.85,0.00018362,2]
[424130490,1780606250000,-2068.89,0.00018364,2]
[424130491,1780606250000,-1456.66,0.00018364,2]
[424130476,1780606250000,-500.0,0.00018326,2]
[424130481,1780606250000,-1659.57,0.00018362,2]
[424130478,1780606250000,-527.61054272,0.00018326,2]
[424130503,1780606250000,-2548.79,0.00018365,2]
[424130504,1780606250000,-529.26,0.00018365,2]
[424130493,1780606250000,-500.0,0.00018364,2]
[424130496,1780606250000,-500.0,0.00018365,2]
[424130495,1780606250000,-503.5,0.00018365,2]
[424130498,1780606250000,-957.06,0.00018365,2]
[424130488,1780606250000,-517.3,0.00018364,2]
[424130485,1780606250000,-500.0,0.00018363,2]
[424130486,1780606250000,-615.98,0.00018364,2]
[424130487,1780606250000,-2275.6,0.00018364,2]
[424130484,1780606250000,-500.0,0.00018362,2]
[424130482,1780606250000,-511.86,0.00018362,2]
[424130492,1780606250000,-1621.65,0.00018364,2]
[424130568,1780606251000,-1003.61187647,0.00018691,2]
[424130569,1780606251000,-1386.43062333,0.00018719,2]
[424130571,1780606251000,-1158.5323308,0.00018719,2]
[424130572,1780606251000,-151.0,0.0001876,2]
[424130567,1780606251000,-950.95648434,0.00018663,2]
[424130573,1780606251000,-151.0,0.0001876,2]
[424130577,1780606251000,-500.0,0.00018774,2]
[424130576,1780606251000,-500.0,0.00018774,2]
[424130575,1780606251000,-187.70412726,0.00018773,2]
[424130578,1780606251000,-196.856999,0.00018849,2]
[424130574,1780606251000,-151.0,0.00018773,2]
[424130566,1780606251000,-906.07933977,0.00018663,2]
[424130570,1780606251000,-913.95830469,0.00018719,2]
[424130582,1780606251000,-150.307,0.000189,2]
[424130583,1780606251000,-1163.65,0.00018904,2]
[424130586,1780606251000,-511.86,0.0001891,2]
[424130581,1780606251000,-344.778,0.00018882,2]
[424130587,1780606251000,-749.98,0.0001891,2]
[424130585,1780606251000,-1659.57,0.0001891,2]
[424130588,1780606251000,-281.21,0.0001891,2]
[424130590,1780606251000,-615.98,0.00018912,2]
[424130580,1780606251000,-500.0,0.00018874,2]
[424130591,1780606251000,-2275.6,0.00018912,2]
[424130589,1780606251000,-500.0,0.00018911,2]
[424130584,1780606251000,-866.85,0.0001891,2]
[424130593,1780606251000,-1194.0,0.00018912,2]
[424130603,1780606251000,-758.34,0.00018913,2]
[424130561,1780606251000,-500.0,0.0001864,2]
[424130579,1780606251000,-500.0,0.00018874,2]
[424130560,1780606251000,-500.0,0.0001864,2]
[424130545,1780606251000,-996.63,0.00018638,2]
[424130556,1780606251000,-758.34,0.0001864,2]
[424130604,1780606251000,-500.0,0.00018913,2]
[424130534,1780606251000,-749.98,0.00018636,2]
[424130538,1780606251000,-2275.6,0.00018638,2]
[424130533,1780606251000,-511.86,0.00018636,2]
[424130539,1780606251000,-517.3,0.00018638,2]
[424130535,1780606251000,-500.0,0.00018636,2]
[424130536,1780606251000,-500.0,0.00018637,2]
[424130537,1780606251000,-615.98,0.00018638,2]
[424130540,1780606251000,-1194.0,0.00018638,2]
[424130542,1780606251000,-1456.66,0.00018638,2]
[424130547,1780606251000,-577.59,0.00018639,2]
[424130544,1780606251000,-500.0,0.00018638,2]
[424130543,1780606251000,-1621.65,0.00018638,2]
[424130551,1780606251000,-625.0,0.00018639,2]
[424130552,1780606251000,-17646.95,0.00018639,2]
[424130549,1780606251000,-541.54,0.00018639,2]
[424130550,1780606251000,-500.0,0.00018639,2]
[424130541,1780606251000,-2068.89,0.00018638,2]
[424130546,1780606251000,-500.0,0.00018639,2]
[424130548,1780606251000,-957.06,0.00018639,2]
[424130554,1780606251000,-529.26,0.00018639,2]
[424130563,1780606251000,-600.85,0.0001864,2]
[424130564,1780606251000,-1164.47,0.0001864,2]
[424130553,1780606251000,-2548.79,0.00018639,2]
[424130565,1780606251000,-1051.46,0.0001864,2]
[424130559,1780606251000,-832.53,0.0001864,2]
[424130562,1780606251000,-3143.61,0.0001864,2]
[424130558,1780606251000,-579.72,0.0001864,2]
[424130557,1780606251000,-500.0,0.0001864,2]
[424130555,1780606251000,-500.0,0.0001864,2]
[424130592,1780606251000,-517.3,0.00018912,2]
[424130606,1780606251000,-832.53,0.00018913,2]
[424130605,1780606251000,-579.72,0.00018913,2]
[424130627,1780606251000,-38000.0,0.00019178,3]
[424130626,1780606251000,-38000.0,0.00019169,3]
[424130628,1780606251000,-767.92208879,0.00019178,3]
[424130633,1780606251000,-151.0,0.00019178,2]
[424130636,1780606251000,-151.0,0.00019178,2]
[424130635,1780606251000,-151.0,0.00019178,2]
[424130647,1780606251000,-151.0,0.00019178,2]
[424130649,1780606251000,-151.0,0.00019178,2]
[424130637,1780606251000,-151.0,0.00019178,2]
[424130646,1780606251000,-151.0,0.00019178,2]
[424130638,1780606251000,-151.0,0.00019178,2]
[424130648,1780606251000,-151.0,0.00019178,2]
[424130640,1780606251000,-151.0,0.00019178,2]
[424130645,1780606251000,-151.0,0.00019178,2]
[424130643,1780606251000,-151.0,0.00019178,2]
[424130642,1780606251000,-151.0,0.00019178,2]
[424130644,1780606251000,-151.0,0.00019178,2]
[424130641,1780606251000,-151.0,0.00019178,2]
[424130650,1780606251000,-244.895952,0.00019178,2]
[424130652,1780606251000,-151.0,0.00019178,2]
[424130651,1780606251000,-174.867301,0.00019178,2]
[424130654,1780606251000,-151.0,0.00019178,2]
[424130653,1780606251000,-151.0,0.00019178,2]
[424130656,1780606251000,-151.0,0.00019178,2]
[424130660,1780606251000,-151.0,0.00019178,2]
[424130658,1780606251000,-151.0,0.00019178,2]
[424130655,1780606251000,-151.0,0.00019178,2]
[424130659,1780606251000,-204.169577,0.00019178,2]
[424130594,1780606251000,-2068.89,0.00018912,2]
[424130622,1780606251000,-500.0,0.00019048,2]
[424130625,1780606251000,-500.0,0.00019148,2]
[424130639,1780606251000,-151.0,0.00019178,2]
[424130631,1780606251000,-300.0,0.00019178,2]
[424130632,1780606251000,-151.0,0.00019178,2]
[424130595,1780606251000,-1456.66,0.00018912,2]
[424130596,1780606251000,-1621.65,0.00018912,2]
[424130598,1780606251000,-996.63,0.00018912,2]
[424130599,1780606251000,-500.0,0.00018913,2]
[424130597,1780606251000,-241.42,0.00018912,2]
[424130600,1780606251000,-500.0,0.00018913,2]
[424130602,1780606251000,-957.06,0.00018913,2]
[424130601,1780606251000,-577.59,0.00018913,2]
[424130613,1780606251000,-600.85,0.00018913,2]
[424130608,1780606251000,-628.55,0.00018913,2]
[424130619,1780606251000,-151.0,0.00019,2]
[424130612,1780606251000,-3143.61,0.00018913,2]
[424130618,1780606251000,-4736.28057805,0.00018922,2]
[424130616,1780606251000,-529.26,0.00018913,2]
[424130657,1780606251000,-151.0,0.00019178,2]
[424130624,1780606251000,-500.0,0.00019148,2]
[424130610,1780606251000,-17646.95,0.00018913,2]
[424130607,1780606251000,-500.0,0.00018913,2]
[424130620,1780606251000,-4616.79522179,0.00019,2]
[424130611,1780606251000,-500.0,0.00018913,2]
[424130615,1780606251000,-2548.79,0.00018913,2]
[424130609,1780606251000,-625.0,0.00018913,2]
[424130617,1780606251000,-1051.46,0.00018913,2]
[424130621,1780606251000,-500.0,0.00019048,2]
[424130614,1780606251000,-1164.47,0.00018913,2]
[424130623,1780606251000,-6318.62399979,0.00019087,2]
[424130629,1780606251000,-151.0,0.00019178,2]
[424130634,1780606251000,-194.570418,0.00019178,2]
[424130630,1780606251000,-14113.60721601,0.00019178,3]
[424130697,1780606252000,-220.191314,0.00019178,2]
[424130707,1780606252000,-151.0,0.00019178,2]
[424130699,1780606252000,-151.0,0.00019178,2]
[424130706,1780606252000,-151.0,0.00019178,2]
[424130704,1780606252000,-151.0,0.00019178,2]
[424130696,1780606252000,-151.0,0.00019178,2]
[424130694,1780606252000,-151.0,0.00019178,2]
[424130693,1780606252000,-151.0,0.00019178,2]
[424130700,1780606252000,-151.0,0.00019178,2]
[424130703,1780606252000,-151.0,0.00019178,2]
[424130701,1780606252000,-151.0,0.00019178,2]
[424130695,1780606252000,-151.0,0.00019178,2]
[424130708,1780606252000,-151.0,0.00019178,2]
[424130698,1780606252000,-151.0,0.00019178,2]
[424130710,1780606252000,-151.0,0.00019178,2]
[424130713,1780606252000,-151.0,0.00019178,2]
[424130716,1780606252000,-151.0,0.00019178,2]
[424130717,1780606252000,-151.0,0.00019178,2]
[424130705,1780606252000,-206.629505,0.00019178,2]
[424130715,1780606252000,-189.61803,0.00019178,2]
[424130709,1780606252000,-151.0,0.00019178,2]
[424130718,1780606252000,-151.0,0.00019178,2]
[424130712,1780606252000,-151.0,0.00019178,2]
[424130714,1780606252000,-151.0,0.00019178,2]
[424130730,1780606252000,-151.0,0.00019178,2]
[424130720,1780606252000,-151.0,0.00019178,2]
[424130722,1780606252000,-151.0,0.00019178,2]
[424130731,1780606252000,-151.0,0.00019178,2]
[424130719,1780606252000,-151.0,0.00019178,2]
[424130711,1780606252000,-151.0,0.00019178,2]
[424130692,1780606252000,-151.0,0.00019178,2]
[424130661,1780606252000,-151.0,0.00019178,2]
[424130690,1780606252000,-151.0,0.00019178,2]
[424130721,1780606252000,-151.0,0.00019178,2]
[424130662,1780606252000,-151.0,0.00019178,2]
[424130664,1780606252000,-151.0,0.00019178,2]
[424130674,1780606252000,-211.528,0.00019178,2]
[424130672,1780606252000,-151.0,0.00019178,2]
[424130675,1780606252000,-151.0,0.00019178,2]
[424130673,1780606252000,-151.0,0.00019178,2]
[424130663,1780606252000,-151.0,0.00019178,2]
[424130665,1780606252000,-290.487662,0.00019178,2]
[424130666,1780606252000,-151.0,0.00019178,2]
[424130668,1780606252000,-151.0,0.00019178,2]
[424130667,1780606252000,-151.0,0.00019178,2]
[424130671,1780606252000,-151.0,0.00019178,2]
[424130669,1780606252000,-151.0,0.00019178,2]
[424130702,1780606252000,-151.0,0.00019178,2]
[424130670,1780606252000,-151.0,0.00019178,2]
[424130680,1780606252000,-151.0,0.00019178,2]
[424130683,1780606252000,-151.0,0.00019178,2]
[424130688,1780606252000,-151.0,0.00019178,2]
[424130678,1780606252000,-151.0,0.00019178,2]
[424130679,1780606252000,-151.0,0.00019178,2]
[424130689,1780606252000,-151.0,0.00019178,2]
[424130686,1780606252000,-151.0,0.00019178,2]
[424130682,1780606252000,-151.0,0.00019178,2]
[424130685,1780606252000,-151.0,0.00019178,2]
[424130684,1780606252000,-151.0,0.00019178,2]
[424130677,1780606252000,-223.388864,0.00019178,2]
[424130687,1780606252000,-151.0,0.00019178,2]
[424130681,1780606252000,-151.0,0.00019178,2]
[424130691,1780606252000,-151.0,0.00019178,2]
[424130676,1780606252000,-151.0,0.00019178,2]
[424130726,1780606252000,-151.0,0.00019178,2]
[424130736,1780606252000,-151.0,0.00019178,2]
[424130725,1780606252000,-151.0,0.00019178,2]
[424130761,1780606252000,-199.085953,0.00019178,2]
[424130759,1780606252000,-199.085953,0.00019178,2]
[424130760,1780606252000,-199.085953,0.00019178,2]
[424130755,1780606252000,-199.085953,0.00019178,2]
[424130756,1780606252000,-199.085953,0.00019178,2]
[424130767,1780606252000,-199.085953,0.00019178,2]
[424130768,1780606252000,-199.085949,0.00019178,2]
[424130769,1780606252000,-151.0,0.00019178,2]
[424130771,1780606252000,-151.0,0.00019178,2]
[424130772,1780606252000,-151.0,0.00019178,2]
[424130770,1780606252000,-151.0,0.00019178,2]
[424130777,1780606252000,-151.0,0.00019178,2]
[424130776,1780606252000,-151.0,0.00019178,2]
[424130781,1780606252000,-151.0,0.00019178,2]
[424130757,1780606252000,-199.085953,0.00019178,2]
[424130773,1780606252000,-151.0,0.00019178,2]
[424130775,1780606252000,-151.0,0.00019178,2]
[424130780,1780606252000,-268.046333,0.00019178,2]
[424130729,1780606252000,-159.079626,0.00019178,2]
[424130774,1780606252000,-151.0,0.00019178,2]
[424130783,1780606252000,-151.0,0.00019178,2]
[424130790,1780606252000,-151.0,0.00019178,2]
[424130784,1780606252000,-151.0,0.00019178,2]
[424130782,1780606252000,-151.0,0.00019178,2]
[424130785,1780606252000,-151.0,0.00019178,2]
[424130787,1780606252000,-151.000009,0.00019178,2]
[424130789,1780606252000,-151.0,0.00019178,2]
[424130786,1780606252000,-151.0,0.00019178,2]
[424130791,1780606252000,-151.0,0.00019178,2]
[424130788,1780606252000,-151.930447,0.00019178,2]
[424130778,1780606252000,-151.0,0.00019178,2]
[424130758,1780606252000,-199.085953,0.00019178,2]
[424130779,1780606252000,-151.0,0.00019178,2]
[424130765,1780606252000,-199.085953,0.00019178,2]
[424130766,1780606252000,-199.085953,0.00019178,2]
[424130727,1780606252000,-151.0,0.00019178,2]
[424130728,1780606252000,-151.0,0.00019178,2]
[424130732,1780606252000,-151.0,0.00019178,2]
[424130723,1780606252000,-151.0,0.00019178,2]
[424130724,1780606252000,-151.0,0.00019178,2]
[424130737,1780606252000,-151.0,0.00019178,2]
[424130734,1780606252000,-239.001516,0.00019178,2]
[424130735,1780606252000,-151.0,0.00019178,2]
[424130738,1780606252000,-151.0,0.00019178,2]
[424130740,1780606252000,-151.0,0.00019178,2]
[424130739,1780606252000,-151.0,0.00019178,2]
[424130741,1780606252000,-151.0,0.00019178,2]
[424130745,1780606252000,-151.0,0.00019178,2]
[424130733,1780606252000,-151.0,0.00019178,2]
[424130744,1780606252000,-151.0,0.00019178,2]
[424130753,1780606252000,-199.085953,0.00019178,2]
[424130751,1780606252000,-199.085953,0.00019178,2]
[424130764,1780606252000,-199.085953,0.00019178,2]
[424130763,1780606252000,-199.085953,0.00019178,2]
[424130762,1780606252000,-199.085953,0.00019178,2]
[424130750,1780606252000,-199.085953,0.00019178,2]
[424130747,1780606252000,-151.0,0.00019178,2]
[424130754,1780606252000,-199.085953,0.00019178,2]
[424130748,1780606252000,-155.79436229,0.00019178,2]
[424130752,1780606252000,-199.085953,0.00019178,2]
[424130743,1780606252000,-151.0,0.00019178,2]
[424130746,1780606252000,-151.0,0.00019178,2]
[424130749,1780606252000,-199.085953,0.00019178,2]
[424130742,1780606252000,-151.0,0.00019178,2]
[424130813,1780606253000,-3537.581328,0.00019178,2]
[424130810,1780606253000,-151.0,0.00019178,2]
[424130820,1780606253000,-194.328971,0.00019178,2]
[424130815,1780606253000,-3537.581328,0.00019178,2]
[424130816,1780606253000,-151.0,0.00019178,2]
[424130817,1780606253000,-3537.581328,0.00019178,2]
[424130818,1780606253000,-151.0,0.00019178,2]
[424130819,1780606253000,-3537.581328,0.00019178,2]
[424130823,1780606253000,-194.328971,0.00019178,2]
[424130829,1780606253000,-3537.58131975,0.00019178,2]
[424130834,1780606253000,-194.328971,0.00019178,2]
[424130826,1780606253000,-194.328971,0.00019178,2]
[424130828,1780606253000,-194.328971,0.00019178,2]
[424130825,1780606253000,-211.64264,0.00019178,2]
[424130827,1780606253000,-3537.581328,0.00019178,2]
[424130832,1780606253000,-194.328971,0.00019178,2]
[424130812,1780606253000,-151.0,0.00019178,2]
[424130830,1780606253000,-194.328971,0.00019178,2]
[424130824,1780606253000,-3537.581328,0.00019178,2]
[424130814,1780606253000,-151.0,0.00019178,2]
[424130799,1780606253000,-3537.581328,0.00019178,2]
[424130811,1780606253000,-3537.581328,0.00019178,2]
[424130831,1780606253000,-194.328971,0.00019178,2]
[424130793,1780606253000,-151.0,0.00019178,2]
[424130794,1780606253000,-151.0,0.00019178,2]
[424130795,1780606253000,-3537.581328,0.00019178,2]
[424130792,1780606253000,-151.0,0.00019178,2]
[424130801,1780606253000,-3537.581328,0.00019178,2]
[424130798,1780606253000,-3537.581328,0.00019178,2]
[424130800,1780606253000,-3537.581328,0.00019178,2]
[424130797,1780606253000,-3537.581328,0.00019178,2]
[424130796,1780606253000,-3537.581328,0.00019178,2]
[424130808,1780606253000,-151.0,0.00019178,2]
[424130804,1780606253000,-151.0,0.00019178,2]
[424130806,1780606253000,-151.0,0.00019178,2]
[424130803,1780606253000,-3537.581328,0.00019178,2]
[424130802,1780606253000,-151.0,0.00019178,2]
[424130805,1780606253000,-3537.581328,0.00019178,2]
[424130809,1780606253000,-3537.581328,0.00019178,2]
[424130807,1780606253000,-3537.581328,0.00019178,2]
[424130821,1780606253000,-3537.581328,0.00019178,2]
[424130822,1780606253000,-151.0,0.00019178,2]
[424130833,1780606253000,-194.328971,0.00019178,2]
[424130851,1780606253000,-151.0,0.00019178,2]
[424130836,1780606253000,-194.328971,0.00019178,2]
[424130861,1780606253000,-159.27,0.00016722,2]
[424130859,1780606253000,-500.0,0.00016174,2]
[424130863,1780606253000,-844.73430077,0.00016994,2]
[424130862,1780606253000,-596.64344323,0.00016994,2]
[424130865,1780606253000,-1336.97496499,0.00017542,2]
[424130864,1780606253000,-1925.42,0.00017268,2]
[424130866,1780606253000,-588.44503501,0.00017542,2]
[424130871,1780606253000,-545.52140495,0.0001809,2]
[424130860,1780606253000,-500.0,0.00016448,2]
[424130867,1780606253000,-655.22,0.00017816,2]
[424130869,1780606253000,-865.03996501,0.00017816,2]
[424130870,1780606253000,-109.69859505,0.0001809,2]
[424130872,1780606253000,-1705.49345905,0.0001809,2]
[424130875,1780606253000,-1925.42,0.00018364,2]
[424130876,1780606253000,-655.22,0.00018638,2]
[424130877,1780606253000,-1610.48125161,0.00018638,2]
[424130874,1780606253000,-655.22,0.00018364,2]
[424130835,1780606253000,-194.328971,0.00019178,2]
[424130868,1780606253000,-1060.38003499,0.00017816,2]
[424130857,1780606253000,-5000.0,0.00014652,2]
[424130873,1780606253000,-219.92654095,0.0001809,2]
[424130856,1780606253000,-484.042256,0.00016994,2]
[424130844,1780606253000,-194.328971,0.00019178,2]
[424130848,1780606253000,-194.328971,0.00019178,2]
[424130858,1780606253000,-500.0,0.000159,2]
[424130845,1780606253000,-151.0,0.00019178,2]
[424130838,1780606253000,-151.0,0.00019178,2]
[424130843,1780606253000,-151.0,0.00019178,2]
[424130842,1780606253000,-194.328971,0.00019178,2]
[424130841,1780606253000,-194.328971,0.00019178,2]
[424130837,1780606253000,-194.328971,0.00019178,2]
[424130839,1780606253000,-194.328971,0.00019178,2]
[424130846,1780606253000,-194.328971,0.00019178,2]
[424130840,1780606253000,-151.0,0.00019178,2]
[424130849,1780606253000,-194.328971,0.00019178,2]
[424130853,1780606253000,-152.488595,0.00019178,2]
[424130878,1780606253000,-314.93874839,0.00018638,2]
[424130852,1780606253000,-151.0,0.00019178,2]
[424130854,1780606253000,-2708.964537,0.00019178,2]
[424130850,1780606253000,-194.328977,0.00019178,2]
[424130855,1780606253000,-1207.2674611,0.00019178,2]
[424130847,1780606253000,-151.0,0.00019178,2]
[424130903,1780606254000,-2708.964537,0.00019178,2]
[424130893,1780606254000,-151.0,0.00019178,2]
[424130889,1780606254000,-151.0,0.00019178,2]
[424130888,1780606254000,-151.0,0.00019178,2]
[424130891,1780606254000,-151.0,0.00019178,2]
[424130890,1780606254000,-190.576082,0.00019178,2]
[424130885,1780606254000,-1331.03465836,0.00019178,2]
[424130880,1780606254000,-1925.42,0.00018912,2]
[424130886,1780606254000,-529.65392859,0.00019178,2]
[424130884,1780606254000,-190.576082,0.00019178,2]
[424130881,1780606254000,-1000.0,0.00019,2]
[424130882,1780606254000,-1501.6970759,0.00019178,2]
[424130883,1780606254000,-151.0,0.00019178,2]
[424130879,1780606254000,-655.22,0.00018912,2]
[424130895,1780606254000,-151.0,0.00019178,2]
[424130887,1780606254000,-848.27595005,0.00019178,2]
[424130894,1780606254000,-190.576082,0.00019178,2]
[424130892,1780606254000,-2708.964537,0.00019178,2]
[424130900,1780606254000,-151.0,0.00019178,2]
[424130913,1780606254000,-152.486138,0.00019178,2]
[424130908,1780606254000,-750.84394065,0.00019178,2]
[424130912,1780606254000,-190.576082,0.00019178,2]
[424130909,1780606254000,-1958.12059635,0.00019178,2]
[424130910,1780606254000,-151.0,0.00019178,2]